fUSD/lending_fUSD_20240116
["ID","MTS","AMOUNT","RATE_DAILY","PERIOD"]
[311761880,1705380664566,-500.0,0.00022703,2]
[311761881,1705380664576,-707.43,0.00022703,2]
[311761882,1705380664585,-890.56,0.00022703,2]
[311761883,1705380664594,-718.31,0.00022703,2]
[311761884,1705380664603,-611.01,0.00022703,2]
[311761885,1705380664612,-619.21,0.00022703,2]
[311761886,1705380664621,-1210.79,0.00022703,2]
[311761887,1705380664630,-500.0,0.00022703,2]
[311761888,1705380664639,-630.71,0.00022703,2]
[311761889,1705380664648,-500.0,0.00022703,2]
[311761890,1705380664658,-500.0,0.00022703,2]
[311761891,1705380664668,-207.617336,0.00022703,2]
[311761892,1705380664677,-207.617336,0.00022703,2]
[311761893,1705380664686,-151.0,0.00022703,7]
[311761894,1705380664696,-226.62774,0.00022703,7]
[311761895,1705380664705,-151.0,0.00022703,7]
[311761896,1705380664714,-151.0,0.00022703,7]
[311761897,1705380664724,-151.0,0.00022703,7]
[311761898,1705380664734,-182.761681,0.00022703,7]
[311761899,1705380664743,-797.45,0.00022704,2]
[311761900,1705380664753,-300.0,0.00022704,2]
[311761901,1705380664763,-500.0,0.00022704,2]
[311761902,1705380664772,-500.0,0.00022704,2]
[311761903,1705380664782,-605.21,0.00022704,2]
[311761904,1705380664791,-535.78768443,0.00022704,2]
[311761905,1705380664801,-500.0,0.00022704,2]
[311761906,1705380664810,-522.87,0.00022704,2]
[311761907,1705380664820,-511.02,0.00022704,2]
[311761908,1705380664829,-705.11,0.00022704,2]
[311761909,1705380664839,-500.0,0.00022704,2]
[311761910,1705380664848,-500.0,0.00022704,2]
[311761911,1705380664857,-593.55,0.00022704,2]
[311761912,1705380664867,-256.1077533,0.00022704,2]
[311761913,1705380664876,-500.0,0.00022704,2]
[311761914,1705380664885,-500.0,0.00022704,2]
[311761915,1705380664895,-500.0,0.00022704,2]
[311761916,1705380664904,-500.0,0.00022704,2]
[311761917,1705380664917,-500.0,0.00022704,2]
[311761918,1705380664926,-557.19,0.00022704,2]
[311761919,1705380664936,-500.0,0.00022704,2]
[311761920,1705380664946,-500.0,0.00022704,2]
[311761921,1705380664955,-500.0,0.00022704,2]
[311761922,1705380664964,-500.0,0.00022704,2]
[311761923,1705380664973,-500.0,0.00022704,2]
[311761924,1705380664982,-304.01670024,0.00022704,2]
[311761925,1705380664992,-537.66,0.00022704,2]
[311761926,1705380665001,-588.3,0.00022704,2]
[311761927,1705380665011,-500.0,0.00022704,2]
[311761928,1705380665020,-554.96,0.00022704,2]
[311761929,1705380665029,-500.0,0.00022704,2]
[311761930,1705380665038,-500.0,0.00022704,2]
[311761931,1705380665047,-500.0,0.00022704,2]
[311761932,1705380665058,-500.0,0.00022704,2]
[311761933,1705380665068,-500.0,0.00022704,2]
[311761934,1705380665079,-500.0,0.00022704,2]
[311761935,1705380665088,-502.25,0.00022704,2]
[311761936,1705380665098,-500.0,0.00022704,2]
[311761937,1705380665108,-500.0,0.00022704,2]
[311761938,1705380665117,-500.0,0.00022704,2]
[311761939,1705380665127,-500.0,0.00022704,2]
[311761940,1705380665137,-500.0,0.00022704,2]
[311761941,1705380665146,-500.0,0.00022704,2]
[311761942,1705380665156,-500.0,0.00022704,2]
[311761943,1705380665166,-663.65,0.00022704,2]
[311761944,1705380665175,-500.0,0.00022704,2]
[311761945,1705380665185,-500.0,0.00022704,2]
[311761946,1705380665195,-500.0,0.00022704,2]
[311761947,1705380665206,-500.0,0.00022704,2]
[311761948,1705380665216,-500.0,0.00022704,2]
[311761949,1705380665225,-500.0,0.00022704,2]
[311761950,1705380665235,-500.0,0.00022704,2]
[311761951,1705380665245,-412.36,0.00022704,2]
[311761952,1705380665255,-608.06,0.00022704,2]
[311761953,1705380665265,-500.0,0.00022704,2]
[311761954,1705380665276,-479.98222053,0.00022704,2]
[311761955,1705380665287,-527.67,0.00022704,2]
[311761956,1705380665296,-500.0,0.00022704,2]
[311761957,1705380665306,-500.0,0.00022704,2]
[311761958,1705380665316,-500.0,0.00022704,2]
[311761959,1705380665326,-500.0,0.00022704,2]
[311761960,1705380665336,-500.0,0.00022704,2]
[311761961,1705380665345,-566.34,0.00022704,2]
[311761962,1705380665355,-500.0,0.00022704,2]
[311761963,1705380665364,-557.0,0.00022704,2]
[311761964,1705380665373,-1053.67,0.00022704,2]
[311761965,1705380665382,-530.88,0.00022704,2]
[311761966,1705380665392,-574.77,0.00022704,2]
[311761967,1705380665401,-500.0,0.00022704,2]
[311761968,1705380665410,-969.74,0.00022704,2]
[311761969,1705380665419,-500.0,0.00022704,2]
[311761970,1705380665429,-500.0,0.00022704,2]
[311761971,1705380665438,-1146.99,0.00022704,2]
[311761972,1705380665448,-500.0,0.00022704,2]
[311761973,1705380665457,-500.0,0.00022704,2]
[311761974,1705380665466,-565.58,0.00022704,2]
[311761975,1705380665475,-500.0,0.00022704,2]
[311761976,1705380665485,-500.0,0.00022704,2]
[311761977,1705380665494,-627.63,0.00022704,2]
[311761978,1705380665503,-500.0,0.00022704,2]
[311761979,1705380665512,-500.0,0.00022704,2]
[311761980,1705380665521,-663.71,0.00022704,2]
[311761981,1705380665531,-500.0,0.00022704,2]
[311761982,1705380665540,-500.0,0.00022704,2]
[311761983,1705380665550,-815.26,0.00022704,2]
[311761984,1705380665559,-500.0,0.00022704,2]
[311761985,1705380665571,-681.39,0.00022704,2]
[311761986,1705380665580,-1042.42,0.00022704,2]
[311761987,1705380665590,-775.55,0.00022704,2]
[311761988,1705380665599,-668.51,0.00022704,2]
[311761989,1705380665609,-1620.83,0.00022704,2]
[311761990,1705380665619,-1188.13,0.00022704,2]
[311761991,1705380665628,-1011.94,0.00022704,2]
[311761992,1705380665638,-2887.94,0.00022704,2]
[311761993,1705380665647,-2800.22,0.00022704,2]
[311761994,1705380665657,-161.9,0.00022721,2]
[311761995,1705380665666,-14864.24021128,0.00022736,2]
[311761996,1705380665676,-167.57674092,0.00022757,6]
[311761997,1705380665685,-153.0,0.00022766,2]
[311761998,1705380665695,-153.0,0.00022766,2]
[311761999,1705380665704,-159.67664272,0.0002277,2]
[311762000,1705380665714,-477.79300423,0.00022779,2]
[311762001,1705380665723,-14864.24021128,0.00022791,2]
[311762002,1705380665732,-151.0,0.00022791,7]
[311762003,1705380665742,-630.71,0.00022794,2]
[311762004,1705380665751,-207.617336,0.00022795,2]
[311762005,1705380665760,-207.617336,0.00022795,2]
[311762006,1705380665770,-151.0,0.00022795,7]
[311762007,1705380665780,-151.0,0.00022795,7]
[311762008,1705380665790,-151.0,0.00022795,7]
[311762009,1705380665800,-1361.904,0.00022795,2]
[311762010,1705380665810,-2431.215,0.00022795,2]
[311762011,1705380665821,-454.564,0.00022795,2]
[311762012,1705380665831,-950.525,0.00022795,2]
[311762013,1705380665840,-840.0,0.00022795,2]
[311762014,1705380665851,-1853.0,0.00022795,2]
[311762015,1705380665861,-3038.0,0.00022795,2]
[311762016,1705380665871,-227.179,0.00022795,2]
[311762017,1705380665882,-1258.764,0.00022795,2]
[311762018,1705380665899,-1241.138,0.00022795,2]
[311762019,1705380665930,-595.419,0.00022795,2]
[311762020,1705380665942,-1933.0,0.00022795,2]
[311762021,1705380665954,-426.0,0.00022795,2]
[311762022,1705380665966,-1000.6,0.00022795,2]
[311762023,1705380665976,-236.42,0.00022795,2]
[311762024,1705380665987,-878.0,0.00022795,2]
[311762025,1705380666000,-509.51,0.00022795,2]
[311762026,1705380666012,-434.344,0.00022795,2]
[311762027,1705380666022,-8115.302,0.00022795,2]
[311762028,1705380666033,-27218.423,0.00022795,2]
[311762029,1705380666043,-2904.0,0.00022795,2]
[311762030,1705380666053,-4173.0,0.00022795,2]
[311762031,1705380666063,-5575.0,0.00022795,2]
[311762032,1705380666073,-7371.504,0.00022795,2]
[311762033,1705380666084,-2282.792,0.00022795,2]
[311762034,1705380666094,-19761.562,0.00022795,2]
[311762035,1705380666105,-1032.255,0.00022795,2]
[311762036,1705380666115,-257.349,0.00022795,2]
[311762037,1705380666126,-168.127,0.00022795,2]
[311762038,1705380666136,-150.589,0.00022795,2]
[311762039,1705380666147,-200000.0,0.000228,2]
[311762040,1705380666157,-151.0,0.000228,7]
[311762041,1705380666167,-500.0,0.00022803,2]
[311762042,1705380666177,-500.0,0.00022812,2]
[311762043,1705380666187,-500.0,0.00022814,2]
[311762044,1705380666196,-500.0,0.00022815,2]
[311762045,1705380666206,-200.0,0.00022815,2]
[311762046,1705380666215,-200.0,0.00022815,2]
[311762047,1705380666225,-500.0,0.00022815,2]
[311762048,1705380666235,-800.0,0.00022816,2]
[311762049,1705380666246,-500.0,0.00022821,2]
[311762050,1705380666256,-500.0,0.0002283,2]
[311762051,1705380666266,-500.0,0.00022838,2]
[311762052,1705380666276,-14864.24021128,0.00022845,2]
[311762053,1705380666286,-500.0,0.00022847,2]
[311762054,1705380666296,-500.0,0.00022856,2]
[311762055,1705380666306,-514.08286243,0.0002286,2]
[311762056,1705380666316,-500.0,0.00022865,2]
[311762057,1705380666326,-500.0,0.00022874,2]
[311762058,1705380666336,-500.0,0.00022882,2]
[311762059,1705380666347,-500.0,0.00022891,2]
[311762060,1705380666357,-500.0,0.00022891,2]
[311762061,1705380666366,-300.0,0.00022899,2]
[311762062,1705380666377,-300.0,0.00022899,2]
[311762063,1705380666387,-630.71,0.00022899,2]
[311762064,1705380666397,-630.71,0.00022899,2]
[311762065,1705380666407,-630.71,0.00022899,2]
[311762066,1705380666417,-58000.0,0.000229,2]
[311762067,1705380666427,-800379.0,0.000229,2]
[311762068,1705380666436,-500.0,0.000229,2]
[311762069,1705380666446,-12261.18046386,0.000229,2]
[311762070,1705380666456,-500.0,0.000229,2]
[311762071,1705380666466,-207.617336,0.000229,2]
[311762072,1705380666476,-207.617336,0.000229,2]
[311762073,1705380666486,-207.617336,0.000229,2]
[311762074,1705380666496,-207.617336,0.000229,2]
[311762075,1705380666506,-151.0,0.000229,7]
[311762076,1705380666516,-151.0,0.000229,7]
[311762077,1705380666526,-151.0,0.000229,7]
[311762078,1705380666536,-163.811331,0.000229,7]
[311762079,1705380666546,-168.24633946,0.000229,2]
[311762080,1705380666555,-168.24633946,0.000229,2]
[311762081,1705380666565,-168.24633946,0.000229,2]
[311762082,1705380666574,-168.24633946,0.000229,2]
[311762083,1705380666585,-168.24633946,0.000229,2]
[311762084,1705380666595,-168.24633946,0.000229,2]
[311762085,1705380666604,-168.24633946,0.000229,2]
[311762086,1705380666613,-477.79300423,0.000229,2]
[311762087,1705380666623,-151.0,0.000229,7]
[311762088,1705380666632,-204.467126,0.000229,7]
[311762089,1705380666642,-14864.24021128,0.000229,2]
[311762090,1705380666652,-151.0,0.000229,7]
[311762091,1705380666662,-1462.16272739,0.000229,2]
[311762092,1705380666671,-156.73748502,0.000229,2]
[311762093,1705380666681,-152.12,0.00022926,2]
[311762094,1705380666691,-630.71,0.0002296,2]
[311762095,1705380666702,-161.9,0.0002296,2]
[311762096,1705380666711,-500.0,0.00022975,2]
[311762097,1705380666721,-500.0,0.00022975,2]
[311762098,1705380666731,-500.0,0.00022975,2]
[311762099,1705380666741,-500.0,0.00022975,2]
[311762100,1705380666750,-500.0,0.00022975,2]
[311762101,1705380666879,-500.0,0.00022975,2]
[311762102,1705380666892,-500.0,0.00022975,2]
[311762103,1705380666904,-500.0,0.00022975,2]
[311762104,1705380666914,-570.71,0.00022975,2]
[311762105,1705380666925,-500.0,0.00022975,2]
[311762106,1705380666946,-500.0,0.00022975,2]
[311762107,1705380666956,-500.0,0.00022975,2]
[311762108,1705380666980,-500.0,0.00022975,2]
[311762109,1705380666991,-500.0,0.00022975,2]
[311762110,1705380667014,-500.0,0.00022975,2]
[311762111,1705380667024,-500.0,0.00022975,2]
[311762112,1705380667037,-500.0,0.00022975,2]
[311762113,1705380667046,-500.0,0.00022975,2]
[311762114,1705380667057,-500.0,0.00022975,2]
[311762115,1705380667066,-920.3,0.00022975,2]
[311762116,1705380667088,-500.0,0.00022975,2]
[311762117,1705380667099,-644.48,0.00022975,2]
[311762118,1705380667108,-500.0,0.00022975,2]
[311762119,1705380667117,-500.0,0.00022975,2]
[311762120,1705380667126,-840.89,0.00022975,2]
[311762121,1705380667135,-500.0,0.00022975,2]
[311762122,1705380667148,-500.0,0.00022975,2]
[311762123,1705380667158,-500.0,0.00022975,2]
[311762124,1705380667167,-500.0,0.00022975,2]
[311762125,1705380667177,-578.76,0.00022975,2]
[311762126,1705380667187,-737.27,0.00022975,2]
[311762127,1705380667197,-500.0,0.00022975,2]
[311762128,1705380667206,-500.0,0.00022975,2]
[311762129,1705380667215,-1627.91,0.00022975,2]
[311762130,1705380667225,-500.0,0.00022975,2]
[311762131,1705380667234,-500.0,0.00022975,5]
[311762132,1705380667243,-730.52,0.00022975,2]
[311762133,1705380667252,-500.0,0.00022975,2]
[311762134,1705380667262,-500.0,0.00022975,2]
[311762135,1705380667272,-551.05,0.00022975,2]
[311762136,1705380667281,-500.0,0.00022975,2]
[311762137,1705380667291,-7240.77,0.00022975,2]
[311762138,1705380667300,-500.0,0.00022975,2]
[311762139,1705380667310,-576.34,0.00022975,2]
[311762140,1705380667319,-500.0,0.00022975,2]
[311762141,1705380667329,-11197.6,0.00022975,2]
[311762142,1705380667339,-500.0,0.00022975,2]
[311762143,1705380667349,-500.0,0.00022975,2]
[311762144,1705380667362,-500.0,0.00022975,2]
[311762145,1705380667380,-500.0,0.00022975,2]
[311762146,1705380667396,-2485.63,0.00022975,2]
[311762147,1705380667417,-500.0,0.00022975,2]
[311762148,1705380667429,-836.1,0.00022975,2]
[311762149,1705380667456,-500.0,0.00022975,2]
[311762150,1705380667472,-500.0,0.00022975,2]
[311762151,1705380667490,-1637.4,0.00022975,2]
[311762152,1705380667501,-500.0,0.00022975,2]
[311762153,1705380667516,-1765.92,0.00022975,2]
[311762154,1705380667539,-500.0,0.00022975,2]
[311762155,1705380667557,-514.64,0.00022975,2]
[311762156,1705380667570,-500.0,0.00022975,2]
[311762157,1705380667583,-500.0,0.00022975,2]
[311762158,1705380667596,-500.0,0.00022975,2]
[311762159,1705380667606,-500.0,0.00022975,2]
[311762160,1705380667617,-500.0,0.00022975,2]
[311762161,1705380667633,-2743.87,0.00022975,2]
[311762162,1705380667662,-500.0,0.00022975,2]
[311762163,1705380667674,-500.0,0.00022975,2]
[311762164,1705380667689,-1420.8,0.00022975,2]
[311762165,1705380667700,-6149.18,0.00022975,2]
[311762166,1705380667712,-500.0,0.00022975,2]
[311762167,1705380667722,-500.0,0.00022975,2]
[311762168,1705380667731,-500.0,0.00022975,2]
[311762169,1705380667741,-946.58,0.00022975,2]
[311762170,1705380667751,-1342.09,0.00022975,2]
[311762171,1705380667761,-500.0,0.00022975,2]
[311762172,1705380667771,-500.0,0.00022975,2]
[311762173,1705380667781,-500.0,0.00022975,2]
[311762174,1705380667792,-500.0,0.00022975,2]
[311762175,1705380667802,-500.0,0.00022975,2]
[311762176,1705380667811,-1013.15,0.00022975,2]
[311762177,1705380667821,-500.0,0.00022975,2]
[311762178,1705380667831,-907.35,0.00022975,2]
[311762179,1705380667841,-500.0,0.00022975,2]
[311762180,1705380667851,-2411.08,0.00022975,2]
[311762181,1705380667861,-569.83,0.00022975,2]
[311762182,1705380667870,-500.0,0.00022975,2]
[311762183,1705380667881,-646.15,0.00022975,2]
[311762184,1705380667891,-505.75,0.00022975,2]
[311762185,1705380667901,-605.31,0.00022975,2]
[311762186,1705380667913,-11400.06,0.00022975,2]
[311762187,1705380667924,-1393.1,0.00022975,2]
[311762188,1705380667937,-1151.68,0.00022975,2]
[311762189,1705380667946,-840.53,0.00022975,2]
[311762190,1705380667956,-500.0,0.00022975,2]
[311762191,1705380667967,-500.0,0.00022975,2]
[311762192,1705380667977,-500.0,0.00022975,2]
[311762193,1705380667988,-500.0,0.00022975,2]
[311762194,1705380667998,-576.91,0.00022975,2]
[311762195,1705380668009,-500.0,0.00022975,2]
[311762196,1705380668019,-1792.33,0.00022975,2]
[311762197,1705380668028,-1019.51,0.00022975,2]
[311762198,1705380668038,-500.0,0.00022975,2]
[311762199,1705380668049,-500.0,0.00022975,2]
[311762200,1705380668059,-820.19,0.00022975,2]
[311762201,1705380668069,-500.0,0.00022975,2]
[311762202,1705380668079,-1045.84,0.00022975,2]
[311762203,1705380668089,-702.49,0.00022975,2]
[311762204,1705380668100,-500.0,0.00022975,2]
[311762205,1705380668109,-500.0,0.00022975,2]
[311762206,1705380668119,-500.0,0.00022975,2]
[311762207,1705380668129,-685.14,0.00022975,2]
[311762208,1705380668138,-622.86,0.00022975,2]
[311762209,1705380668148,-500.0,0.00022975,2]
[311762210,1705380668158,-2590.24,0.00022975,2]
[311762211,1705380668167,-632.57,0.00022975,2]
[311762212,1705380668177,-1289.4,0.00022975,2]
[311762213,1705380668187,-1277.12,0.00022976,2]
[311762214,1705380668197,-609.74,0.00022976,2]
[311762215,1705380668207,-500.0,0.00022976,2]
[311762216,1705380668217,-515.89,0.00022976,2]
[311762217,1705380668228,-791.5,0.00022976,2]
[311762218,1705380668238,-690.51,0.00022976,2]
[311762219,1705380668249,-500.0,0.00022976,2]
[311762220,1705380668259,-500.0,0.00022976,2]
[311762221,1705380668269,-500.0,0.00022976,2]
[311762222,1705380668279,-667.54,0.00022976,2]
[311762223,1705380668290,-500.0,0.00022976,2]
[311762224,1705380668300,-500.0,0.00022976,2]
[311762225,1705380668310,-501.91,0.00022976,2]
[311762226,1705380668320,-581.81,0.00022976,2]
[311762227,1705380668330,-500.0,0.00022976,2]
[311762228,1705380668341,-532.56,0.00022976,2]
[311762229,1705380668351,-679.53,0.00022976,2]
[311762230,1705380668361,-500.0,0.00022976,2]
[311762231,1705380668371,-500.0,0.00022976,2]
[311762232,1705380668381,-539.1,0.00022976,2]
[311762233,1705380668391,-500.0,0.00022976,2]
[311762234,1705380668402,-500.0,0.00022976,2]
[311762235,1705380668412,-500.0,0.00022976,2]
[311762236,1705380668423,-520.74,0.00022976,2]
[311762237,1705380668433,-580.26,0.00022976,2]
[311762238,1705380668443,-500.0,0.00022976,2]
[311762239,1705380668453,-722.17,0.00022976,2]
[311762240,1705380668463,-610.63,0.00022976,2]
[311762241,1705380668473,-674.04,0.00022976,2]
[311762242,1705380668484,-563.67,0.00022976,2]
[311762243,1705380668493,-500.0,0.00022976,2]
[311762244,1705380668502,-547.15,0.00022976,2]
[311762245,1705380668512,-500.0,0.00022976,2]
[311762246,1705380668521,-612.6,0.00022976,2]
[311762247,1705380668531,-599.53,0.00022976,2]
[311762248,1705380668542,-500.0,0.00022976,2]
[311762249,1705380668551,-525.59,0.00022976,2]
[311762250,1705380668560,-530.85,0.00022976,2]
[311762251,1705380668570,-500.0,0.00022976,2]
[311762252,1705380668579,-500.0,0.00022976,2]
[311762253,1705380668588,-591.22,0.00022976,2]
[311762254,1705380668598,-697.65,0.00022976,2]
[311762255,1705380668607,-634.4,0.00022976,2]
[311762256,1705380668617,-569.73,0.00022976,2]
[311762257,1705380668627,-795.68,0.00022976,2]
[311762258,1705380668637,-993.65,0.00022976,2]
[311762259,1705380668647,-500.0,0.00022976,2]
[311762260,1705380668656,-500.0,0.00022976,2]
[311762261,1705380668666,-614.03,0.00022976,2]
[311762262,1705380668677,-500.0,0.00022976,2]
[311762263,1705380668687,-587.81,0.00022976,2]
[311762264,1705380668697,-522.85,0.00022976,2]
[311762265,1705380668708,-500.0,0.00022976,2]
[311762266,1705380668718,-2389.39,0.00022976,2]
[311762267,1705380668728,-543.49,0.00022976,2]
[311762268,1705380668737,-500.0,0.00022976,2]
[311762269,1705380668747,-1081.7,0.00022976,2]
[311762270,1705380668756,-657.09,0.00022976,2]
[311762271,1705380668766,-500.0,0.00022976,2]
[311762272,1705380668776,-1299.66,0.00022976,2]
[311762273,1705380668788,-615.43,0.00022976,2]
[311762274,1705380668798,-1083.17,0.00022976,2]
[311762275,1705380668809,-646.08,0.00022976,2]
[311762276,1705380668819,-500.0,0.00022976,2]
[311762277,1705380668830,-935.42,0.00022976,2]
[311762278,1705380668839,-2304.96,0.00022976,2]
[311762279,1705380668849,-500.0,0.00022976,2]
[311762280,1705380668858,-977.51,0.00022976,2]
[311762281,1705380668868,-1035.2,0.00022976,2]
[311762282,1705380668879,-444.56,0.00022976,2]
[311762283,1705380668889,-556.48,0.00022976,2]
[311762284,1705380668899,-500.0,0.00022976,2]
[311762285,1705380668913,-3757.23,0.00022976,2]
[311762286,1705380668923,-500.0,0.00022976,2]
[311762287,1705380668933,-2601.27,0.00022976,2]
[311762288,1705380668943,-2536.53,0.00022976,2]
[311762289,1705380668953,-659.02,0.00022976,2]
[311762290,1705380668963,-500.0,0.00022976,2]
[311762291,1705380668973,-777.74,0.00022976,2]
[311762292,1705380668983,-3180.17,0.00022976,2]
[311762293,1705380669002,-5214.22,0.00022976,2]
[311762294,1705380669014,-500.0,0.00022976,2]
[311762295,1705380669024,-2275.53,0.00022976,2]
[311762296,1705380669034,-1093.3,0.00022976,2]
[311762297,1705380669044,-1447.13,0.00022976,2]
[311762298,1705380669054,-500.0,0.00022976,2]
[311762299,1705380669064,-1554.44,0.00022976,2]
[311762300,1705380669073,-150.0,0.00022976,2]
[311762301,1705380669084,-6597.71,0.00022976,2]
[311762302,1705380669094,-617.99,0.00022976,2]
[311762303,1705380669103,-532.27,0.00022976,2]
[311762304,1705380669113,-500.0,0.00022976,2]
[311762305,1705380669123,-500.0,0.00022976,2]
[311762306,1705380669133,-4124.75,0.00022976,2]
[311762307,1705380669143,-1227.63,0.00022976,2]
[311762308,1705380669152,-548.61,0.00022976,2]
[311762309,1705380669162,-568.72,0.00022976,2]
[311762310,1705380669172,-500.0,0.00022976,2]
[311762311,1705380669182,-3614.61,0.00022976,2]
[311762312,1705380669191,-5318.17,0.00022976,2]
[311762313,1705380669201,-531.15,0.00022976,2]
[311762314,1705380669211,-3136.35,0.00022976,2]
[311762315,1705380669221,-1222.52,0.00022976,2]
[311762316,1705380669231,-19226.91,0.00022976,2]
[311762317,1705380669563,-649.7,0.00022976,2]
[311762318,1705380669629,-3280.96,0.00022976,2]
[311762319,1705380669640,-1945.31,0.00022976,2]
[311762320,1705380669650,-8446.63,0.00022976,2]
[311762321,1705380669661,-1038.84,0.00022976,2]
[311762322,1705380669672,-500.0,0.00022976,2]
[311762323,1705380669682,-1540.49,0.00022976,2]
[311762324,1705380669692,-3043.7,0.00022976,2]
[311762325,1705380669703,-1831.93,0.00022976,2]
[311762326,1705380669714,-775.24,0.00022976,2]
[311762327,1705380669724,-2922.32,0.00022976,2]
[311762328,1705380669736,-614.88,0.00022976,2]
[311762329,1705380669747,-905.14,0.00022976,2]
[311762330,1705380669757,-500.0,0.00022976,2]
[311762331,1705380669772,-500.0,0.00022976,2]
[311762332,1705380669782,-1389.73,0.00022976,2]
[311762333,1705380669799,-500.0,0.00022976,2]
[311762334,1705380669810,-968.52,0.00022976,2]
[311762335,1705380669822,-500.0,0.00022976,2]
[311762336,1705380669848,-2463.87,0.00022976,2]
[311762337,1705380669866,-500.0,0.00022976,2]
[311762338,1705380669879,-500.0,0.00022976,2]
[311762339,1705380669894,-500.0,0.00022976,2]
[311762340,1705380669910,-956.57,0.00022976,2]
[311762341,1705380669926,-500.0,0.00022976,2]
[311762342,1705380669939,-547.98,0.00022976,2]
[311762343,1705380669950,-1252.9,0.00022976,2]
[311762344,1705380669961,-5094.69,0.00022976,2]
[311762345,1705380669972,-2369.57,0.00022976,2]
[311762346,1705380669993,-500.0,0.00022976,2]
[311762347,1705380670003,-1084.91,0.00022976,2]
[311762348,1705380670013,-551.6,0.00022976,2]
[311762349,1705380670024,-500.0,0.00022976,2]
[311762350,1705380670034,-3045.89,0.00022976,2]
[311762351,1705380670045,-676.94,0.00022976,2]
[311762352,1705380670059,-619.22,0.00022976,2]
[311762353,1705380670069,-1115.49,0.00022976,2]
[311762354,1705380670080,-1872.74,0.00022976,2]
[311762355,1705380670089,-3553.28,0.00022976,2]
[311762356,1705380670099,-1459.34,0.00022976,2]
[311762357,1705380670109,-500.0,0.00022976,5]
[311762358,1705380670118,-500.0,0.00022976,2]
[311762359,1705380670129,-500.0,0.00022976,2]
[311762360,1705380670139,-2913.93,0.00022976,2]
[311762361,1705380670149,-3099.47,0.00022976,2]
[311762362,1705380670159,-651.7,0.00022976,2]
[311762363,1705380670183,-500.0,0.00022976,2]
[311762364,1705380670200,-500.0,0.00022976,2]
[311762365,1705380670222,-500.0,0.00022976,2]
[311762366,1705380670240,-1205.66,0.00022976,2]
[311762367,1705380670253,-500.0,0.00022976,2]
[311762368,1705380670267,-500.0,0.00022976,2]
[311762369,1705380670282,-566.98,0.00022976,2]
[311762370,1705380670303,-3272.08,0.00022976,2]
[311762371,1705380670316,-1146.36,0.00022976,2]
[311762372,1705380670328,-1171.02,0.00022976,2]
[311762373,1705380670342,-779.81,0.00022976,2]
[311762374,1705380670364,-500.0,0.00022976,2]
[311762375,1705380670374,-713.99,0.00022976,2]
[311762376,1705380670388,-4567.13,0.00022976,2]
[311762377,1705380670398,-1286.39,0.00022976,2]
[311762378,1705380670410,-500.0,0.00022976,2]
[311762379,1705380670420,-702.86,0.00022976,2]